[Event "Titled Tuesday Blitz May 30 Early 2023"]
[White "ArrestingPieces"]
[Black "Dilmukhametov, Artur"]
[BlackFideId "24179922"]
[WhiteElo "2556"]
[BlackElo "2242"]
[Result "1-0"]
[Round "01"]
[TimeControl "180+2"]
[Date "2023.05.30"]
[WhiteClock "0:00:10"]
[BlackClock "0:00:04"]

1. d4 {[%clk 0:03:00]}  Nf6 {[%clk 0:02:53]} 2. Nf3 {[%clk 0:03:00]}  g6 {[%clk 0:02:52]} 3. Nc3 {[%clk 0:02:55]}  d5 {[%clk 0:02:51]} 4. Bf4 {[%clk 0:02:54]}  Bg7 {[%clk 0:02:50]} 5. Nb5 {[%clk 0:02:53]}  Na6 {[%clk 0:02:50]} 6. e3 {[%clk 0:02:52]}  c6 {[%clk 0:02:50]} 7. Nc3 {[%clk 0:02:52]}  Nc7 {[%clk 0:02:51]} 8. h3 {[%clk 0:02:50]}  O-O {[%clk 0:02:51]} 9. Bd3 {[%clk 0:02:51]}  Ne6 {[%clk 0:02:48]} 10. Bh2 {[%clk 0:02:43]}  c5 {[%clk 0:02:48]} 11. O-O {[%clk 0:02:31]}  c4 {[%clk 0:02:47]} 12. Be2 {[%clk 0:02:32]}  Bd7 {[%clk 0:02:46]} 13. a4 {[%clk 0:02:31]}  a6 {[%clk 0:02:42]} 14. a5 {[%clk 0:02:29]}  b5 {[%clk 0:02:42]} 15. axb6 {[%clk 0:02:28]}  Qxb6 {[%clk 0:02:42]} 16. Ra2 {[%clk 0:02:26]}  Bb5 {[%clk 0:02:26]} 17. Ne5 {[%clk 0:02:26]}  Qb7 {[%clk 0:02:19]} 18. f4 {[%clk 0:02:23]}  Rfc8 {[%clk 0:01:33]} 19. f5 {[%clk 0:02:19]}  gxf5 {[%clk 0:01:28]} 20. Bh5 {[%clk 0:02:17]}  Nxh5 {[%clk 0:01:25]} 21. Qxh5 {[%clk 0:02:17]}  Nd8 {[%clk 0:01:10]} 22. Qxf5 {[%clk 0:02:11]}  e6 {[%clk 0:01:05]} 23. Qh5 {[%clk 0:02:00]}  Be8 {[%clk 0:01:01]} 24. Qg5 {[%clk 0:01:55]}  f6 {[%clk 0:00:44]} 25. Rxf6 {[%clk 0:01:28]}  Qe7 {[%clk 0:00:44]} 26. Ng4 {[%clk 0:01:13]}  Nf7 {[%clk 0:00:42]} 27. Qh4 {[%clk 0:01:13]}  h5 {[%clk 0:00:20]} 28. Qxh5 {[%clk 0:00:46]}  Bxf6 {[%clk 0:00:21]} 29. Qg6+ {[%clk 0:00:43]}  Bg7 {[%clk 0:00:20]} 30. Ra1 {[%clk 0:00:41]}  Nd6 {[%clk 0:00:04]} 31. Nh6+ {[%clk 0:00:40]}  Kh8 {[%clk 0:00:04]} 32. Qg4 {[%clk 0:00:22]}  Bxh6 {[%clk 0:00:04]} 33. Be5+ {[%clk 0:00:23]}  Bg7 {[%clk 0:00:04]} 34. Rf1 {[%clk 0:00:21]}  Bf7 {[%clk 0:00:02]} 35. Qg3 {[%clk 0:00:20]}  Bxe5 {[%clk 0:00:02]} 36. Qxe5+ {[%clk 0:00:20]}  Kg8 {[%clk 0:00:02]} 37. Rf4 {[%clk 0:00:21]}  Nf5 {[%clk 0:00:02]} 38. Rg4+ {[%clk 0:00:21]}  Bg6 {[%clk 0:00:01]} 39. Rxg6+ {[%clk 0:00:21]}  Kf7 {[%clk 0:00:02]} 40. Nxd5 {[%clk 0:00:15]}  exd5 {[%clk 0:00:01]} 41. Qxf5+ {[%clk 0:00:16]}  Ke8 {[%clk 0:00:02]} 42. Rg8+ {[%clk 0:00:15]}  Qf8 {[%clk 0:00:03]} 43. Rxf8+ {[%clk 0:00:16]}  Ke7 {[%clk 0:00:03]} 44. Rf7+ {[%clk 0:00:10]}  Kd6 {[%clk 0:00:04]} 45. Qf6# {[%clk 0:00:10]} 1-0


[Site "https://www.chess.com"]

[Event "Titled Tuesday Blitz May 30 Early 2023"]
[White "Garv Gaur"]
[Black "Kiseljova, Marya"]
[WhiteFideId "45030839"]
[BlackFideId "4155009"]
[WhiteElo "2068"]
[BlackElo "1831"]
[Result "1-0"]
[Round "01"]
[TimeControl "180+2"]
[Date "2023.05.30"]
[WhiteClock "0:01:23"]
[BlackClock "0:00:17"]

1. Nf3 {[%clk 0:02:56]}  d5 {[%clk 0:02:59]} 2. e3 {[%clk 0:02:52]}  Nf6 {[%clk 0:02:57]} 3. b3 {[%clk 0:02:48]}  Bg4 {[%clk 0:02:54]} 4. Bb2 {[%clk 0:02:46]}  e6 {[%clk 0:02:53]} 5. Be2 {[%clk 0:02:43]}  Nbd7 {[%clk 0:02:50]} 6. d3 {[%clk 0:02:41]}  Bb4+ {[%clk 0:02:43]} 7. Nbd2 {[%clk 0:02:40]}  O-O {[%clk 0:02:43]} 8. O-O {[%clk 0:02:40]}  c6 {[%clk 0:02:38]} 9. a3 {[%clk 0:02:37]}  c5 {[%clk 0:02:38]} 10. axb4 {[%clk 0:02:36]}  cxb4 {[%clk 0:02:21]} 11. Ne5 {[%clk 0:02:32]}  Bxe2 {[%clk 0:02:16]} 12. Qxe2 {[%clk 0:02:33]}  Qc7 {[%clk 0:02:16]} 13. Nxd7 {[%clk 0:02:27]}  Nxd7 {[%clk 0:02:14]} 14. Qg4 {[%clk 0:02:25]}  e5 {[%clk 0:02:09]} 15. Qxb4 {[%clk 0:02:18]}  Qxc2 {[%clk 0:02:00]} 16. Qc3 {[%clk 0:02:18]}  Rac8 {[%clk 0:01:52]} 17. Rfc1 {[%clk 0:02:07]}  Rxc3 {[%clk 0:01:44]} 18. Bxc3 {[%clk 0:02:00]}  Qxc1+ {[%clk 0:01:30]} 19. Rxc1 {[%clk 0:01:58]}  Rc8 {[%clk 0:01:30]} 20. Bb2 {[%clk 0:01:57]}  Rxc1+ {[%clk 0:01:26]} 21. Bxc1 {[%clk 0:01:58]}  f6 {[%clk 0:01:26]} 22. Bb2 {[%clk 0:01:58]}  Kf7 {[%clk 0:01:26]} 23. d4 {[%clk 0:01:57]}  Ke6 {[%clk 0:01:26]} 24. e4 {[%clk 0:01:55]}  dxe4 {[%clk 0:01:21]} 25. Nxe4 {[%clk 0:01:56]}  exd4 {[%clk 0:01:21]} 26. Kf1 {[%clk 0:01:51]}  Kd5 {[%clk 0:01:18]} 27. f3 {[%clk 0:01:51]}  f5 {[%clk 0:01:13]} 28. Nd2 {[%clk 0:01:50]}  Nc5 {[%clk 0:01:08]} 29. Ke2 {[%clk 0:01:49]}  b5 {[%clk 0:01:08]} 30. Ba3 {[%clk 0:01:49]}  Ne6 {[%clk 0:01:07]} 31. g3 {[%clk 0:01:48]}  g5 {[%clk 0:01:04]} 32. Kd3 {[%clk 0:01:45]}  h5 {[%clk 0:01:01]} 33. b4 {[%clk 0:01:45]}  Nd8 {[%clk 0:00:44]} 34. f4 {[%clk 0:01:37]}  g4 {[%clk 0:00:40]} 35. Nb3 {[%clk 0:01:36]}  Nf7 {[%clk 0:00:34]} 36. Nxd4 {[%clk 0:01:28]}  Nd6 {[%clk 0:00:35]} 37. Bc1 {[%clk 0:01:25]}  a6 {[%clk 0:00:33]} 38. Bd2 {[%clk 0:01:23]}  Ne4 {[%clk 0:00:20]} 39. Nxf5 {[%clk 0:01:22]}  Nxd2 {[%clk 0:00:17]} 40. Kxd2 {[%clk 0:01:23]}  Kc4 {[%clk 0:00:18]} 41. Ne3+ {[%clk 0:01:21]}  Kxb4 {[%clk 0:00:18]} 42. f5 {[%clk 0:01:22]}  a5 {[%clk 0:00:16]} 43. f6 {[%clk 0:01:22]}  a4 {[%clk 0:00:17]} 44. f7 {[%clk 0:01:23]}  a3 {[%clk 0:00:17]} 45. f8=Q+ {[%clk 0:01:24]}  Kb3 {[%clk 0:00:17]} 46. Nc2 {[%clk 0:01:21]}  b4 {[%clk 0:00:16]} 47. Qxb4+ {[%clk 0:01:22]}  Ka2 {[%clk 0:00:17]} 48. Qxa3+ {[%clk 0:01:22]}  Kb1 {[%clk 0:00:17]} 49. Qa1# {[%clk 0:01:23]} 1-0


[Site "https://www.chess.com"]

[Event "Titled Tuesday Blitz May 30 Early 2023"]
[White "Zainullina, Nataliya"]
[Black "Gheorghiu, Calin"]
[WhiteFideId "4145488"]
[BlackFideId "1200305"]
[WhiteElo "2179"]
[BlackElo "2223"]
[Result "0-1"]
[Round "01"]
[TimeControl "180+2"]
[Date "2023.05.30"]
[WhiteClock "0:00:10"]
[BlackClock "0:00:13"]

1. Nf3 {[%clk 0:02:54]}  d5 {[%clk 0:02:59]} 2. d4 {[%clk 0:02:54]}  Nf6 {[%clk 0:02:58]} 3. c4 {[%clk 0:02:54]}  e6 {[%clk 0:02:57]} 4. g3 {[%clk 0:02:54]}  Bb4+ {[%clk 0:02:56]} 5. Bd2 {[%clk 0:02:53]}  Be7 {[%clk 0:02:48]} 6. Nc3 {[%clk 0:02:53]}  O-O {[%clk 0:02:41]} 7. Bg2 {[%clk 0:02:53]}  c6 {[%clk 0:02:38]} 8. O-O {[%clk 0:02:52]}  dxc4 {[%clk 0:02:34]} 9. Ne5 {[%clk 0:02:51]}  Qxd4 {[%clk 0:02:33]} 10. Nf3 {[%clk 0:02:45]}  Qd8 {[%clk 0:02:32]} 11. a4 {[%clk 0:02:45]}  Nbd7 {[%clk 0:02:28]} 12. Qc2 {[%clk 0:02:44]}  Qc7 {[%clk 0:02:19]} 13. Rad1 {[%clk 0:02:42]}  Rb8 {[%clk 0:02:16]} 14. Nd4 {[%clk 0:02:38]}  a6 {[%clk 0:02:11]} 15. h3 {[%clk 0:02:33]}  c5 {[%clk 0:02:10]} 16. Nf3 {[%clk 0:02:30]}  b5 {[%clk 0:02:09]} 17. axb5 {[%clk 0:02:25]}  axb5 {[%clk 0:02:08]} 18. Bf4 {[%clk 0:01:56]}  e5 {[%clk 0:02:07]} 19. Rxd7 {[%clk 0:01:50]}  Nxd7 {[%clk 0:02:04]} 20. Nd5 {[%clk 0:01:47]}  Qd6 {[%clk 0:01:49]} 21. Ng5 {[%clk 0:01:23]}  Bxg5 {[%clk 0:01:19]} 22. Bxg5 {[%clk 0:01:18]}  f6 {[%clk 0:01:15]} 23. Be3 {[%clk 0:01:16]}  Nb6 {[%clk 0:01:04]} 24. Rd1 {[%clk 0:01:13]}  Rd8 {[%clk 0:00:55]} 25. Nc3 {[%clk 0:01:09]}  Qe7 {[%clk 0:00:49]} 26. Rxd8+ {[%clk 0:01:06]}  Qxd8 {[%clk 0:00:50]} 27. Nxb5 {[%clk 0:00:50]}  Bb7 {[%clk 0:00:45]} 28. Bxb7 {[%clk 0:00:45]}  Rxb7 {[%clk 0:00:45]} 29. Bxc5 {[%clk 0:00:45]}  Qd5 {[%clk 0:00:31]} 30. Bxb6 {[%clk 0:00:19]}  Qxb5 {[%clk 0:00:26]} 31. Be3 {[%clk 0:00:17]}  Qd5 {[%clk 0:00:16]} 32. Bc1 {[%clk 0:00:17]}  Rd7 {[%clk 0:00:16]} 33. Kh2 {[%clk 0:00:18]}  g6 {[%clk 0:00:13]} 34. Be3 {[%clk 0:00:18]}  Kg7 {[%clk 0:00:13]} 35. Qa4 {[%clk 0:00:18]}  Rb7 {[%clk 0:00:11]} 36. Qa3 {[%clk 0:00:17]}  Rb3 {[%clk 0:00:10]} 37. Qa7+ {[%clk 0:00:15]}  Kg8 {[%clk 0:00:08]} 38. Qe7 {[%clk 0:00:14]}  Qf7 {[%clk 0:00:08]} 39. Qd8+ {[%clk 0:00:14]}  Kg7 {[%clk 0:00:08]} 40. Qd2 {[%clk 0:00:13]}  h5 {[%clk 0:00:07]} 41. Bc5 {[%clk 0:00:11]}  Rb7 {[%clk 0:00:07]} 42. Ba3 {[%clk 0:00:11]}  Rd7 {[%clk 0:00:08]} 43. Qe3 {[%clk 0:00:11]}  Qd5 {[%clk 0:00:07]} 44. Qb6 {[%clk 0:00:11]}  Qd4 {[%clk 0:00:07]} 45. Qxd4 {[%clk 0:00:05]}  exd4 {[%clk 0:00:06]} 46. Kg2 {[%clk 0:00:06]}  c3 {[%clk 0:00:06]} 47. bxc3 {[%clk 0:00:06]}  dxc3 {[%clk 0:00:07]} 48. Kf3 {[%clk 0:00:06]}  c2 {[%clk 0:00:07]} 49. Bc1 {[%clk 0:00:06]}  Rd1 {[%clk 0:00:08]} 50. Bb2 {[%clk 0:00:06]}  c1=Q {[%clk 0:00:07]} 51. Bxc1 {[%clk 0:00:07]}  Rxc1 {[%clk 0:00:08]} 52. e3 {[%clk 0:00:07]}  Rc6 {[%clk 0:00:09]} 53. Kf4 {[%clk 0:00:07]}  Kf7 {[%clk 0:00:10]} 54. e4 {[%clk 0:00:08]}  Rc4 {[%clk 0:00:10]} 55. g4 {[%clk 0:00:08]}  hxg4 {[%clk 0:00:10]} 56. hxg4 {[%clk 0:00:09]}  Ke6 {[%clk 0:00:11]} 57. f3 {[%clk 0:00:10]}  g5+ {[%clk 0:00:11]} 58. Ke3 {[%clk 0:00:10]}  Ke5 {[%clk 0:00:12]} 59. Ke2 {[%clk 0:00:11]}  Ra4 {[%clk 0:00:12]} 60. Ke3 {[%clk 0:00:11]}  Ra3+ {[%clk 0:00:13]} 61. Kd2 {[%clk 0:00:10]}  Kf4 {[%clk 0:00:13]} 0-1


[Site "https://www.chess.com"]

[Event "Titled Tuesday Blitz May 30 Early 2023"]
[White "Bodnaruk, Anastasia"]
[Black "Tarnowska, Aleksandra"]
[WhiteFideId "4181751"]
[BlackFideId "1180967"]
[WhiteElo "2304"]
[BlackElo "1776"]
[Result "1-0"]
[Round "01"]
[TimeControl "180+2"]
[Date "2023.05.30"]
[WhiteClock "0:00:03"]
[BlackClock "0:00:03"]

1. e4 {[%clk 0:02:57]}  c5 {[%clk 0:03:00]} 2. Nc3 {[%clk 0:02:56]}  Nc6 {[%clk 0:02:52]} 3. Bb5 {[%clk 0:02:56]}  Nd4 {[%clk 0:02:52]} 4. Bc4 {[%clk 0:02:56]}  e6 {[%clk 0:02:47]} 5. Nge2 {[%clk 0:02:51]}  Nxe2 {[%clk 0:02:37]} 6. Qxe2 {[%clk 0:02:50]}  d6 {[%clk 0:02:37]} 7. d3 {[%clk 0:02:41]}  Nf6 {[%clk 0:02:31]} 8. Be3 {[%clk 0:02:31]}  Be7 {[%clk 0:02:30]} 9. d4 {[%clk 0:02:29]}  cxd4 {[%clk 0:02:29]} 10. Bxd4 {[%clk 0:02:30]}  O-O {[%clk 0:02:24]} 11. O-O {[%clk 0:02:29]}  a6 {[%clk 0:02:22]} 12. a4 {[%clk 0:02:28]}  Bd7 {[%clk 0:02:21]} 13. Rad1 {[%clk 0:02:23]}  Qc7 {[%clk 0:02:19]} 14. e5 {[%clk 0:02:17]}  dxe5 {[%clk 0:02:00]} 15. Bxe5 {[%clk 0:02:17]}  Qc8 {[%clk 0:02:01]} 16. Ne4 {[%clk 0:01:56]}  Nxe4 {[%clk 0:01:08]} 17. Qxe4 {[%clk 0:01:56]}  Rd8 {[%clk 0:01:06]} 18. Qg4 {[%clk 0:01:47]}  Bf8 {[%clk 0:01:04]} 19. Rd3 {[%clk 0:01:36]}  b5 {[%clk 0:00:42]} 20. axb5 {[%clk 0:01:21]}  Bxb5 {[%clk 0:00:41]} 21. Bxb5 {[%clk 0:01:17]}  axb5 {[%clk 0:00:42]} 22. Rg3 {[%clk 0:01:16]}  g6 {[%clk 0:00:37]} 23. Qf4 {[%clk 0:00:50]}  Bg7 {[%clk 0:00:36]} 24. Bxg7 {[%clk 0:00:34]}  Kxg7 {[%clk 0:00:37]} 25. Rh3 {[%clk 0:00:35]}  h5 {[%clk 0:00:21]} 26. Rf3 {[%clk 0:00:35]}  Rd7 {[%clk 0:00:18]} 27. c3 {[%clk 0:00:25]}  Ra4 {[%clk 0:00:18]} 28. Qe5+ {[%clk 0:00:24]}  Kg8 {[%clk 0:00:18]} 29. Qxb5 {[%clk 0:00:24]}  Re4 {[%clk 0:00:15]} 30. h3 {[%clk 0:00:15]}  Qd8 {[%clk 0:00:15]} 31. Qc6 {[%clk 0:00:08]}  Re5 {[%clk 0:00:15]} 32. Qc4 {[%clk 0:00:08]}  Red5 {[%clk 0:00:14]} 33. Kh2 {[%clk 0:00:07]}  Rd2 {[%clk 0:00:14]} 34. g3 {[%clk 0:00:07]}  Rxb2 {[%clk 0:00:14]} 35. Qf4 {[%clk 0:00:07]}  Rbb7 {[%clk 0:00:10]} 36. c4 {[%clk 0:00:07]}  Rbc7 {[%clk 0:00:10]} 37. Rc1 {[%clk 0:00:06]}  Rd4 {[%clk 0:00:10]} 38. Qe5 {[%clk 0:00:05]}  Rd2 {[%clk 0:00:09]} 39. Kg2 {[%clk 0:00:04]}  Rcd7 {[%clk 0:00:04]} 40. Rb1 {[%clk 0:00:04]}  Kh7 {[%clk 0:00:03]} 41. Rb8 {[%clk 0:00:04]}  Re2 {[%clk 0:00:01]} 42. Rxd8 {[%clk 0:00:02]}  Rxe5 {[%clk 0:00:01]} 43. Rxd7 {[%clk 0:00:03]}  Rc5 {[%clk 0:00:02]} 44. Rdxf7+ {[%clk 0:00:03]}  Kh6 {[%clk 0:00:02]} 45. Re7 {[%clk 0:00:03]}  Rxc4 {[%clk 0:00:03]} 46. Rff7 {[%clk 0:00:03]}  Kg5 {[%clk 0:00:03]} 47. h4+ {[%clk 0:00:03]}  Kg4 {[%clk 0:00:03]} 48. f3# {[%clk 0:00:03]} 1-0


[Site "https://www.chess.com"]

[Event "Titled Tuesday Blitz May 30 Early 2023"]
[White "Berezin, Viktor"]
[Black "Lakshmi C"]
[WhiteFideId "14107872"]
[BlackFideId "25035347"]
[WhiteElo "2310"]
[BlackElo "1942"]
[Result "1-0"]
[Round "01"]
[TimeControl "180+2"]
[Date "2023.05.30"]
[WhiteClock "0:01:10"]
[BlackClock "0:00:00"]

1. d4 {[%clk 0:03:00]}  Nf6 {[%clk 0:02:57]} 2. Nf3 {[%clk 0:03:01]}  e6 {[%clk 0:02:56]} 3. g3 {[%clk 0:03:01]}  b6 {[%clk 0:02:55]} 4. Bg2 {[%clk 0:03:02]}  Bb7 {[%clk 0:02:55]} 5. O-O {[%clk 0:03:03]}  Be7 {[%clk 0:02:55]} 6. c4 {[%clk 0:03:03]}  O-O {[%clk 0:02:54]} 7. Nc3 {[%clk 0:03:04]}  Ne4 {[%clk 0:02:54]} 8. Qc2 {[%clk 0:03:04]}  Nxc3 {[%clk 0:02:54]} 9. Qxc3 {[%clk 0:03:05]}  f5 {[%clk 0:02:54]} 10. Rd1 {[%clk 0:03:05]}  Bf6 {[%clk 0:02:54]} 11. Be3 {[%clk 0:02:53]}  d6 {[%clk 0:02:49]} 12. b4 {[%clk 0:02:53]}  Nd7 {[%clk 0:02:20]} 13. Rac1 {[%clk 0:02:46]}  Qe7 {[%clk 0:02:16]} 14. Qb3 {[%clk 0:02:44]}  a5 {[%clk 0:01:58]} 15. a3 {[%clk 0:02:42]}  axb4 {[%clk 0:01:56]} 16. axb4 {[%clk 0:02:43]}  Bc6 {[%clk 0:01:55]} 17. b5 {[%clk 0:02:37]}  Be4 {[%clk 0:01:55]} 18. Ne1 {[%clk 0:02:30]}  Bxg2 {[%clk 0:01:46]} 19. Nxg2 {[%clk 0:02:31]}  Kh8 {[%clk 0:01:45]} 20. c5 {[%clk 0:02:12]}  d5 {[%clk 0:00:54]} 21. c6 {[%clk 0:02:10]}  Ra3 {[%clk 0:00:48]} 22. Qb2 {[%clk 0:02:04]}  Nb8 {[%clk 0:00:40]} 23. Nf4 {[%clk 0:01:58]}  g5 {[%clk 0:00:29]} 24. Nd3 {[%clk 0:01:56]}  Ra5 {[%clk 0:00:25]} 25. Ra1 {[%clk 0:01:52]}  Rxa1 {[%clk 0:00:20]} 26. Rxa1 {[%clk 0:01:52]}  Bg7 {[%clk 0:00:19]} 27. Ra7 {[%clk 0:01:48]}  Bh6 {[%clk 0:00:19]} 28. Qb4 {[%clk 0:01:45]}  Qg7 {[%clk 0:00:18]} 29. f4 {[%clk 0:01:23]}  Re8 {[%clk 0:00:07]} 30. fxg5 {[%clk 0:01:14]}  Bxg5 {[%clk 0:00:06]} 31. Bf4 {[%clk 0:01:10]}  Bxf4 {[%clk 0:00:00]} 32. Nxf4 {[%clk 0:01:10]} 1-0


[Site "https://www.chess.com"]

[Event "Titled Tuesday Blitz May 30 Early 2023"]
[White "Shvedova, Alexandra"]
[Black "dDobravcan"]
[WhiteFideId "54154782"]
[WhiteElo "1973"]
[BlackElo "2117"]
[Result "1-0"]
[Round "01"]
[TimeControl "180+2"]
[Date "2023.05.30"]
[WhiteClock "0:01:04"]
[BlackClock "0:00:00"]

1. e4 {[%clk 0:02:40]}  c5 {[%clk 0:02:58]} 2. Ne2 {[%clk 0:02:38]}  a6 {[%clk 0:02:55]} 3. d4 {[%clk 0:02:37]}  cxd4 {[%clk 0:02:54]} 4. Nxd4 {[%clk 0:02:38]}  e6 {[%clk 0:02:54]} 5. c4 {[%clk 0:02:38]}  Nf6 {[%clk 0:02:49]} 6. Nc3 {[%clk 0:02:38]}  d6 {[%clk 0:02:49]} 7. Be3 {[%clk 0:02:37]}  b6 {[%clk 0:02:48]} 8. f3 {[%clk 0:02:37]}  Bb7 {[%clk 0:02:48]} 9. Be2 {[%clk 0:02:38]}  Be7 {[%clk 0:02:43]} 10. Qd2 {[%clk 0:02:38]}  Nbd7 {[%clk 0:02:40]} 11. O-O {[%clk 0:02:36]}  Qc7 {[%clk 0:02:37]} 12. Rfc1 {[%clk 0:02:30]}  Rc8 {[%clk 0:02:36]} 13. Rab1 {[%clk 0:02:28]}  O-O {[%clk 0:02:31]} 14. b4 {[%clk 0:02:27]}  Qb8 {[%clk 0:02:25]} 15. Nd1 {[%clk 0:02:27]}  d5 {[%clk 0:02:21]} 16. exd5 {[%clk 0:02:25]}  exd5 {[%clk 0:02:20]} 17. Nf5 {[%clk 0:02:25]}  Bd8 {[%clk 0:02:17]} 18. c5 {[%clk 0:02:22]}  Bc7 {[%clk 0:01:56]} 19. c6 {[%clk 0:02:14]}  Bxh2+ {[%clk 0:01:45]} 20. Kh1 {[%clk 0:01:56]}  Bxc6 {[%clk 0:01:27]} 21. Ne7+ {[%clk 0:01:50]}  Kh8 {[%clk 0:01:27]} 22. Nxc6 {[%clk 0:01:50]}  Qd6 {[%clk 0:01:20]} 23. Nd4 {[%clk 0:01:35]}  Nh5 {[%clk 0:01:13]} 24. Nf5 {[%clk 0:01:16]}  Qe5 {[%clk 0:00:46]} 25. Bd3 {[%clk 0:01:14]}  Rfe8 {[%clk 0:00:33]} 26. Bd4 {[%clk 0:01:09]}  Qb8 {[%clk 0:00:14]} 27. Rxc8 {[%clk 0:01:05]}  Rxc8 {[%clk 0:00:00]} 28. Qg5 {[%clk 0:01:04]} 1-0


[Site "https://www.chess.com"]

[Event "Titled Tuesday Blitz May 30 Early 2023"]
[White "Horokoskii"]
[Black "Zochowski, Kacper"]
[BlackFideId "1125494"]
[WhiteElo "2114"]
[BlackElo "2235"]
[Result "0-1"]
[Round "01"]
[TimeControl "180+2"]
[Date "2023.05.30"]
[WhiteClock "0:01:10"]
[BlackClock "0:00:54"]

1. d4 {[%clk 0:02:37]}  e6 {[%clk 0:02:54]} 2. c4 {[%clk 0:02:36]}  f5 {[%clk 0:02:54]} 3. g3 {[%clk 0:02:34]}  Nf6 {[%clk 0:02:53]} 4. Bg2 {[%clk 0:02:34]}  c6 {[%clk 0:02:51]} 5. Nc3 {[%clk 0:02:35]}  d5 {[%clk 0:02:49]} 6. Nh3 {[%clk 0:02:35]}  Bd6 {[%clk 0:02:39]} 7. Bf4 {[%clk 0:02:34]}  O-O {[%clk 0:02:37]} 8. O-O {[%clk 0:02:33]}  b6 {[%clk 0:02:15]} 9. b3 {[%clk 0:02:26]}  Bb7 {[%clk 0:02:08]} 10. Rc1 {[%clk 0:02:25]}  Qe7 {[%clk 0:02:07]} 11. Bxd6 {[%clk 0:02:23]}  Qxd6 {[%clk 0:02:06]} 12. Nf4 {[%clk 0:02:23]}  Nbd7 {[%clk 0:02:00]} 13. Rc2 {[%clk 0:02:20]}  a5 {[%clk 0:01:48]} 14. Nd3 {[%clk 0:02:10]}  Ne4 {[%clk 0:01:45]} 15. Qa1 {[%clk 0:01:54]}  Rad8 {[%clk 0:01:37]} 16. Rfc1 {[%clk 0:01:50]}  Ndf6 {[%clk 0:01:19]} 17. Ne5 {[%clk 0:01:49]}  Nxc3 {[%clk 0:01:08]} 18. Qxc3 {[%clk 0:01:48]}  Ne4 {[%clk 0:01:05]} 19. Qe3 {[%clk 0:01:47]}  dxc4 {[%clk 0:01:02]} 20. Rxc4 {[%clk 0:01:44]}  c5 {[%clk 0:00:58]} 21. dxc5 {[%clk 0:01:39]}  Qxe5 {[%clk 0:00:58]} 22. c6 {[%clk 0:01:37]}  Ba6 {[%clk 0:00:56]} 23. f3 {[%clk 0:01:18]}  Bxc4 {[%clk 0:00:55]} 24. bxc4 {[%clk 0:01:10]}  Qc5 {[%clk 0:00:54]} 0-1


[Site "https://www.chess.com"]

[Event "Titled Tuesday Blitz May 30 Early 2023"]
[White "Lehtosaari, Mauri"]
[Black "Lonoff, Marc"]
[WhiteFideId "501999"]
[BlackFideId "2001349"]
[WhiteElo "2540"]
[BlackElo "2114"]
[Result "1-0"]
[Round "01"]
[TimeControl "180+2"]
[Date "2023.05.30"]
[WhiteClock "0:00:25"]
[BlackClock "0:00:16"]

1. d4 {[%clk 0:02:57]}  e6 {[%clk 0:02:59]} 2. Nf3 {[%clk 0:02:57]}  f5 {[%clk 0:02:57]} 3. Bf4 {[%clk 0:02:55]}  Nf6 {[%clk 0:02:55]} 4. e3 {[%clk 0:02:55]}  Be7 {[%clk 0:02:44]} 5. Be2 {[%clk 0:02:50]}  Nh5 {[%clk 0:02:38]} 6. O-O {[%clk 0:02:25]}  Nxf4 {[%clk 0:02:36]} 7. exf4 {[%clk 0:02:23]}  Bf6 {[%clk 0:02:24]} 8. c3 {[%clk 0:02:22]}  O-O {[%clk 0:02:23]} 9. g3 {[%clk 0:02:19]}  b6 {[%clk 0:02:23]} 10. Nbd2 {[%clk 0:02:15]}  Ba6 {[%clk 0:02:16]} 11. Bxa6 {[%clk 0:02:12]}  Nxa6 {[%clk 0:02:17]} 12. Re1 {[%clk 0:02:07]}  Kh8 {[%clk 0:02:11]} 13. Ne5 {[%clk 0:02:04]}  c5 {[%clk 0:02:09]} 14. Qh5 {[%clk 0:02:01]}  Bxe5 {[%clk 0:01:54]} 15. dxe5 {[%clk 0:02:00]}  Nc7 {[%clk 0:01:45]} 16. Nc4 {[%clk 0:01:40]}  Qe8 {[%clk 0:01:36]} 17. Qxe8 {[%clk 0:01:37]}  Rfxe8 {[%clk 0:01:34]} 18. Rad1 {[%clk 0:01:37]}  Re7 {[%clk 0:01:33]} 19. Rd2 {[%clk 0:01:31]}  b5 {[%clk 0:01:34]} 20. Na5 {[%clk 0:01:30]}  c4 {[%clk 0:01:27]} 21. Nb7 {[%clk 0:01:26]}  Nd5 {[%clk 0:01:24]} 22. Nd6 {[%clk 0:01:25]}  h6 {[%clk 0:01:14]} 23. Nxf5 {[%clk 0:01:12]}  Rf7 {[%clk 0:01:06]} 24. Nd6 {[%clk 0:01:10]}  Re7 {[%clk 0:01:06]} 25. Nxb5 {[%clk 0:01:10]}  g5 {[%clk 0:01:04]} 26. Rd4 {[%clk 0:01:07]}  gxf4 {[%clk 0:01:03]} 27. Rxc4 {[%clk 0:01:03]}  Rg7 {[%clk 0:00:53]} 28. Rce4 {[%clk 0:00:51]}  h5 {[%clk 0:00:52]} 29. c4 {[%clk 0:00:49]}  fxg3 {[%clk 0:00:48]} 30. cxd5 {[%clk 0:00:36]}  gxf2+ {[%clk 0:00:46]} 31. Kxf2 {[%clk 0:00:37]}  Rf8+ {[%clk 0:00:45]} 32. Ke3 {[%clk 0:00:37]}  Rg2 {[%clk 0:00:37]} 33. Re2 {[%clk 0:00:34]}  Rg1 {[%clk 0:00:34]} 34. dxe6 {[%clk 0:00:33]}  dxe6 {[%clk 0:00:34]} 35. Rf4 {[%clk 0:00:29]}  Rb8 {[%clk 0:00:30]} 36. Nd6 {[%clk 0:00:27]}  Rb5 {[%clk 0:00:16]} 37. Kf2 {[%clk 0:00:25]} 1-0


[Site "https://www.chess.com"]